Workbook

Sheet HOME
B2: EKONOMICKÉ MODELOVANIE V TABUĽKOVOM KALKULÁTORE

Sheet Objednávky
B3: Objednávky | H3: Objednávky | I3: Produkt
B4: Dátum | C4: Zamestnanec | D4: Produkt | E4: Počet ks | H4: Zamestnanec | I4: - | J4: A | K4: B | L4: C | M4: D | N4: E | O4: SPOLU
B5: 2011-06-02 | C5: Peter Havran | D5: A | E5: 2500 | H5: Roman Sokol | J5: 7000 | K5: 3000 | L5: 3500 | M5: 1500 | N5: 4000 | O5: 19000
B6: 2011-06-02 | C6: Roman Sokol | D6: B | E6: 3000 | H6: Peter Havran | J6: 7500 | K6: 8000 | L6: 3500 | N6: 3500 | O6: 22500
B7: 2011-06-03 | C7: Anton Herhaj | D7: C | E7: 3000 | H7: Anton Herhaj | J7: 11000 | K7: 2000 | L7: 9000 | M7: 5000 | N7: 3500 | O7: 30500
B8: 2011-06-03 | C8: Roman Sokol | D8: D | E8: 1500 | H8: -
B9: 2011-06-05 | C9: Peter Havran | D9: E | E9: 3500 | H9: SPOLU | J9: 25500 | K9: 13000 | L9: 16000 | M9: 6500 | N9: 11000 | O9: 72000
B10: 2011-06-07 | C10: Anton Herhaj | D10: A | E10: 6000
B11: 2011-06-08 | C11: Roman Sokol | D11: E | E11: 4000
B12: 2011-06-09 | C12: Peter Havran | D12: C | E12: 3500
B13: 2011-06-12 | C13: Anton Herhaj | D13: B | E13: 2000
B14: 2011-06-13 | C14: Roman Sokol | D14: A | E14: 5000
B15: 2011-06-14 | C15: Peter Havran | D15: B | E15: 4000
B16: 2011-06-15 | C16: Anton Herhaj | D16: D | E16: 5000
B17: 2011-06-17 | C17: Roman Sokol | D17: C | E17: 3500
B18: 2011-06-19 | C18: Roman Sokol | D18: A | E18: 2000
B19: 2011-06-21 | C19: Anton Herhaj | D19: E | E19: 3500
B20: 2011-06-22 | C20: Peter Havran | D20: A | E20: 5000
B21: 2011-06-22 | C21: Anton Herhaj | D21: A | E21: 5000
B22: 2011-06-23 | C22: Peter Havran | D22: B | E22: 4000
B23: 2011-06-27 | C23: Anton Herhaj | D23: C | E23: 6000
B97: 2011-06-02 | C97: Peter Havran | D97: A | E97: 2500
B98: 2011-06-02 | C98: Roman Sokol | D98: B | E98: 3000
B99: 2011-06-03 | C99: Anton Herhaj | D99: C | E99: 3000
B100: 2011-06-03 | C100: Roman Sokol | D100: D | E100: 1500
B101: 2011-06-05 | C101: Peter Havran | D101: E | E101: 3500
B102: 2011-06-07 | C102: Anton Herhaj | D102: A | E102: 6000
B103: 2011-06-08 | C103: Roman Sokol | D103: E | E103: 3000
B104: 2011-06-09 | C104: Peter Havran | D104: C | E104: 3500
B105: 2011-06-12 | C105: Anton Herhaj | D105: B | E105: 2000
B106: 2011-06-13 | C106: Roman Sokol | D106: A | E106: 5000
B107: 2011-06-14 | C107: Peter Havran | D107: B | E107: 4000
B108: 2011-06-15 | C108: Anton Herhaj | D108: D | E108: 5000
B109: 2011-06-17 | C109: Roman Sokol | D109: C | E109: 3500
B110: 2011-06-19 | C110: Roman Sokol | D110: A | E110: 2000
B111: 2011-06-21 | C111: Anton Herhaj | D111: E | E111: 3500
B112: 2011-06-22 | C112: Peter Havran | D112: A | E112: 5000
B113: 2011-06-22 | C113: Anton Herhaj | D113: A | E113: 5000
B114: 2011-06-23 | C114: Peter Havran | D114: B | E114: 4000
B115: 2011-06-27 | C115: Anton Herhaj | D115: C | E115: 6000

Sheet Výroba
A1: Výroba
B3: Materiály | F3: Produkty
B4: Materiál | C4: Cena za jednotku | F4: Produkt | G4: Materiál 1 | H4: Materiál 2 | I4: Materiál 3 | J4: Materiál 4 | K4: Materiál 5
B5: Materiál 1 | C5: 250 | F5: Produkt A | G5: 0.25 | H5: 0.6 | I5: - | J5: 0.15 | K5: -
B6: Materiál 2 | C6: 300 | F6: Produkt B | G6: 0.3 | H6: - | I6: 0.5 | J6: - | K6: 0.2
B7: Materiál 3 | C7: 300 | F7: Produkt C | G7: 0.6 | H7: 0.4
B8: Materiál 4 | C8: 200 | F8: Produkt D | G8: 0.3 | H8: - | I8: 0.45 | J8: - | K8: 0.25
B9: Materiál 5 | C9: 500 | F9: Produkt E | G9: - | H9: 0.25 | I9: 0.25 | J9: 0.3 | K9: 0.2
B12: Fond pracovných hodín | F12: Časová náročnosť* | J12: Priestory
B13: Na 1 osobu | C13: RPD | D13: Nadčasy | J13: 20000 | K13: Kč/mesiac
F14: Počet kusov celkom | H14: =GETPIVOTDATA("Počet ks",Objednávky!$H$3) -> 72000
B15: Zamestnanec | C15: 160 | D15: 72 | F15: Počet potrebných hodín | H15: =H14/G18 -> 1800 | J15: Energie
B16: Brigádnik | C16: 80 | J16: 20 | K16: Kč/hod
B17: Celkom | C17: RPD | D17: Nadčasy
B18: Celkom | F18: ks/hod | G18: 40
B19: Zamestnanci | C19: ='Zamestnanci - Plán hodín '!I4 -> 1600 | D19: ='Zamestnanci - Plán hodín '!J4 -> 167.0000024 | F19: min/ks | G19: =60/G18 -> 1.5
B20: Brigádnici | C20: ='Zamestnanci - Plán hodín '!I5 -> 800 | F20: *Všetky produkty sú vyrobené za rovnaký čas
B21: SPOLU: | C21: ='Zamestnanci - Plán hodín '!I6 -> 2567.000002
E22: =IF(($H$15-$C$21)>=1,"Potrebné zvýšiť úväzky o",IF($H$15-$C$21<=-1,"Potrebné znížit úväzky o","Úväzky sedia")) -> Potrebné znížit úväzky o | H22: =IF(H15-C21>=1,H15-C21,IF(H15-C21<=-1,C21-H15,"OK")) -> 767.0000024 | I22: =IF($H$22="OK","","hodín") -> hodín

Sheet Zamestnanci zoznam
B2: EKONOMICKÉ MODELOVANIE V TABUĽKOVOM KALKULÁTORE
K3: Počet zamestnancov:
B4: Výroba | E4: Predaj | H4: Brigádnici | K4: Výroba | L4: =COUNTA(C6:C15) -> 10
C5: Meno a priezvisko | F5: Meno a priezvisko | I5: Meno a priezvisko | K5: Brigádnici | L5: =COUNTA(I6:I15) -> 10
B6: 1. | C6: Rudolf Záhora | E6: 1. | F6: Peter Havran | H6: 1. | I6: Lukáš Trilobit | K6: Predaj | L6: =COUNTA(F6:F9) -> 3
B7: 2. | C7: Peter Butolický | E7: 2. | F7: Roman Sokol | H7: 2. | I7: Marián Sergej
B8: 3. | C8: Ján Kukumberg | E8: 3. | F8: Anton Herhaj | H8: 3. | I8: Jakub Cvrlík
B9: 4. | C9: Pavel Peniažka | H9: 4. | I9: Matúš Sobranec
B10: 5. | C10: Miroslav Černý | H10: 5. | I10: Erik Sebák
B11: 6. | C11: Ján Dobrman | H11: 6. | I11: Filip Tučný
B12: 7. | C12: Oliver Manera | H12: 7. | I12: Andrej Chudý
B13: 8. | C13: Samuel Dlhý | H13: 8. | I13: Eliáš Široký
B14: 9. | C14: Jozef Novák | H14: 9. | I14: Edmund Kovalda
B15: 10. | C15: Pavol Hurhaj | H15: 10. | I15: Stano Truhlár

Sheet Zamestnanci - Plán hodín
B2: Zamestnanci | C2: Riadna pracovná doba | D2: Nadčasy | G2: Fond pracovných hodín
I3: RPD | J3: Nadčasy
B4: ='Zamestnanci zoznam'!C6 -> Rudolf Záhora | C4: =$I$10 -> 160 | D4: 30.36363681 | G4: Zamestnanci | I4: =SUM(C4:C13) -> 1600 | J4: =SUM(D4:D13) -> 167.0000024
B5: ='Zamestnanci zoznam'!C7 -> Peter Butolický | C5: 160 | D5: 15.1818184 | G5: Brigádnici | I5: =SUM(C16:C25) -> 800
B6: ='Zamestnanci zoznam'!C8 -> Ján Kukumberg | C6: 160 | D6: 15.1818184 | G6: Spolu | I6: =SUM(I4,J4,I5) -> 2567.000002
B7: ='Zamestnanci zoznam'!C9 -> Pavel Peniažka | C7: 160 | D7: 15.1818184
B8: ='Zamestnanci zoznam'!C10 -> Miroslav Černý | C8: 160 | D8: 15.1818184
B9: ='Zamestnanci zoznam'!C11 -> Ján Dobrman | C9: 160 | D9: 15.1818184 | G9: Na 1 osobu | I9: RPD | J9: Nadčasy
B10: ='Zamestnanci zoznam'!C12 -> Oliver Manera | C10: 160 | D10: 15.1818184 | G10: Zamestnanec | I10: 160 | J10: 72
B11: ='Zamestnanci zoznam'!C13 -> Samuel Dlhý | C11: 160 | D11: 15.1818184 | G11: Brigádnik | I11: 80
B12: ='Zamestnanci zoznam'!C14 -> Jozef Novák | C12: 160 | D12: 15.1818184 | G12: Počet zamestnancov | J12: ='Zamestnanci zoznam'!L4 -> 10
B13: ='Zamestnanci zoznam'!C15 -> Pavol Hurhaj | C13: 160 | D13: 15.1818184 | G13: Počet brigádnikov | J13: ='Zamestnanci zoznam'!L5 -> 10
B14: Brigádnici | G14: Počet potrebných hodín | J14: =Výroba!H15 -> 1800
G15: Pracovné hodiny k dispozícii | J15: =I6 -> 2567.000002
B16: ='Zamestnanci zoznam'!I6 -> Lukáš Trilobit | C16: 80
B17: ='Zamestnanci zoznam'!I7 -> Marián Sergej | C17: 80 | F17: =IF(($J$14-$J$15)>=1,"Potrebné zvýšiť úväzky o",IF($J$14-$J$15<=-1,"Potrebné znížiť úväzky o","Úväzky sedia")) -> Potrebné znížiť úväzky o | I17: =IF(($J$14-$J$15)>=1,($J$14-$J$15),IF(($J$14-$J$15)<=-1,($J$15-$J$14),"OK")) -> 767.0000024 | J17: =IF($I$17="OK","","hodín") -> hodín
B18: ='Zamestnanci zoznam'!I8 -> Jakub Cvrlík | C18: 80
B19: ='Zamestnanci zoznam'!I9 -> Matúš Sobranec | C19: 80
B20: ='Zamestnanci zoznam'!I10 -> Erik Sebák | C20: 80
B21: ='Zamestnanci zoznam'!I11 -> Filip Tučný | C21: 80
B22: ='Zamestnanci zoznam'!I12 -> Andrej Chudý | C22: 80
B23: ='Zamestnanci zoznam'!I13 -> Eliáš Široký | C23: 80
B24: ='Zamestnanci zoznam'!I14 -> Edmund Kovalda | C24: 80
B25: ='Zamestnanci zoznam'!I15 -> Stano Truhlár | C25: 80

Sheet Zamestnanci - mzdy
A1: Zamestnanci - mzdy
B3: Výroba | I3: Predaj
B4: Meno | C4: Počet odpracovaných hodín | E4: Mzda | I4: Meno | K4: Počet kusov | Q4: Mzda
B5: Zamestnanci | C5: Riadna pracovná doba | D5: Nadčasy | E5: Riadna pracovná doba | F5: Nadčasy | G5: Celkom | K5: A | L5: B | M5: C | N5: D | O5: E | P5: Spolu | Q5: Norma | R5: Prémie | S5: Celkom
I6: ='Zamestnanci zoznam'!F6 -> Peter Havran | K6: =GETPIVOTDATA("Počet ks",Objednávky!$H$3,"Zamestnanec","Peter Havran","Produkt","A") -> 7500 | L6: =GETPIVOTDATA("Počet ks",Objednávky!$H$3,"Zamestnanec","Peter Havran","Produkt","B") -> 8000 | M6: =GETPIVOTDATA("Počet ks",Objednávky!$H$3,"Zamestnanec","Peter Havran","Produkt","C") -> 3500 | N6: =GETPIVOTDATA("Počet ks",Objednávky!$H$3,"Zamestnanec","Peter Havran","Produkt","D") -> 0 | O6: =GETPIVOTDATA("Počet ks",Objednávky!$H$3,"Zamestnanec","Peter Havran","Produkt","E") -> 3500 | P6: =SUM(K6:O6) -> 22500 | Q6: =SUMPRODUCT($K$13:$O$13,K6:O6) -> 23130 | R6: =IF(SUM(K6:O6)<=$N$16,0,(VLOOKUP(SUM(K6:O6)-$N$16,$J$16:$L$19,3)*(P6-$N$16))) -> 2625 | S6: =SUM(Q6:R6) -> 25755
B7: ='Zamestnanci zoznam'!$C$6 -> Rudolf Záhora | C7: ='Zamestnanci - Plán hodín '!C4 -> 160 | D7: ='Zamestnanci - Plán hodín '!D4 -> 30.36363681 | E7: =C7*$M$23 -> 16000 | F7: =D7*$N$23 -> 4554.545521 | G7: =E7+F7 -> 20554.54552 | I7: ='Zamestnanci zoznam'!F7 -> Roman Sokol | K7: =GETPIVOTDATA("Počet ks",Objednávky!$H$3,"Zamestnanec","Roman Sokol","Produkt","A") -> 7000 | L7: =GETPIVOTDATA("Počet ks",Objednávky!$H$3,"Zamestnanec","Roman Sokol","Produkt","B") -> 3000 | M7: =GETPIVOTDATA("Počet ks",Objednávky!$H$3,"Zamestnanec","Roman Sokol","Produkt","C") -> 3500 | N7: =GETPIVOTDATA("Počet ks",Objednávky!$H$3,"Zamestnanec","Roman Sokol","Produkt","D") -> 1500 | O7: =GETPIVOTDATA("Počet ks",Objednávky!$H$3,"Zamestnanec","Roman Sokol","Produkt","E") -> 4000 | P7: =SUM(K7:O7) -> 19000 | Q7: =SUMPRODUCT($K$13:$O$13,K7:O7) -> 19440 | R7: =IF(SUM(K7:O7)<=$N$16,0,(VLOOKUP(SUM(K7:O7)-$N$16,$J$16:$L$19,3)*(P7-$N$16))) -> 0 | S7: =SUM(Q7:R7) -> 19440
B8: ='Zamestnanci zoznam'!$C$7 -> Peter Butolický | C8: ='Zamestnanci - Plán hodín '!C5 -> 160 | D8: ='Zamestnanci - Plán hodín '!D5 -> 15.1818184 | E8: 16000 | F8: 2277.272761 | G8: =E8+F8 -> 18277.27276 | I8: ='Zamestnanci zoznam'!F8 -> Anton Herhaj | K8: =GETPIVOTDATA("Počet ks",Objednávky!$H$3,"Zamestnanec","Anton Herhaj","Produkt","A") -> 11000 | L8: =GETPIVOTDATA("Počet ks",Objednávky!$H$3,"Zamestnanec","Anton Herhaj","Produkt","B") -> 2000 | M8: =GETPIVOTDATA("Počet ks",Objednávky!$H$3,"Zamestnanec","Anton Herhaj","Produkt","C") -> 9000 | N8: =GETPIVOTDATA("Počet ks",Objednávky!$H$3,"Zamestnanec","Anton Herhaj","Produkt","D") -> 5000 | O8: =GETPIVOTDATA("Počet ks",Objednávky!$H$3,"Zamestnanec","Anton Herhaj","Produkt","E") -> 3500 | P8: 30500 | Q8: =SUMPRODUCT($K$13:$O$13,K8:O8) -> 31210 | R8: =IF(SUM(K8:O8)<=$N$16,0,(VLOOKUP(SUM(K8:O8)-$N$16,$J$16:$L$19,3)*(P8-$N$16))) -> 12075 | S8: 43285
B9: ='Zamestnanci zoznam'!C8 -> Ján Kukumberg | C9: ='Zamestnanci - Plán hodín '!C6 -> 160 | D9: ='Zamestnanci - Plán hodín '!D6 -> 15.1818184 | E9: 16000 | F9: 2277.272761 | G9: 18277.27276
B10: ='Zamestnanci zoznam'!C9 -> Pavel Peniažka | C10: ='Zamestnanci - Plán hodín '!C7 -> 160 | D10: ='Zamestnanci - Plán hodín '!D7 -> 15.1818184 | E10: 16000 | F10: 2277.272761 | G10: 18277.27276 | J10: Mzdové tabuľky
B11: ='Zamestnanci zoznam'!C10 -> Miroslav Černý | C11: ='Zamestnanci - Plán hodín '!C8 -> 160 | D11: ='Zamestnanci - Plán hodín '!D8 -> 15.1818184 | E11: 16000 | F11: 2277.272761 | G11: 18277.27276 | J11: Predaj
B12: ='Zamestnanci zoznam'!C11 -> Ján Dobrman | C12: ='Zamestnanci - Plán hodín '!C9 -> 160 | D12: ='Zamestnanci - Plán hodín '!D9 -> 15.1818184 | E12: 16000 | F12: 2277.272761 | G12: 18277.27276 | J12: Produkt | K12: A | L12: B | M12: C | N12: D | O12: E
B13: ='Zamestnanci zoznam'!C12 -> Oliver Manera | C13: ='Zamestnanci - Plán hodín '!C10 -> 160 | D13: ='Zamestnanci - Plán hodín '!D10 -> 15.1818184 | E13: 16000 | F13: 2277.272761 | G13: 18277.27276 | J13: Koeficient | K13: 1 | L13: 1.07 | M13: 1 | N13: 1.1 | O13: 1.02
B14: ='Zamestnanci zoznam'!C13 -> Samuel Dlhý | C14: ='Zamestnanci - Plán hodín '!C11 -> 160 | D14: ='Zamestnanci - Plán hodín '!D11 -> 15.1818184 | E14: 16000 | F14: 2277.272761 | G14: 18277.27276 | J14: Prémie
B15: ='Zamestnanci zoznam'!C14 -> Jozef Novák | C15: ='Zamestnanci - Plán hodín '!C12 -> 160 | D15: ='Zamestnanci - Plán hodín '!D12 -> 15.1818184 | E15: 16000 | F15: 2277.272761 | G15: 18277.27276 | J15: od | K15: do | L15: Koeficient | N15: Norma | O15: Sadzba
B16: ='Zamestnanci zoznam'!C15 -> Pavol Hurhaj | C16: ='Zamestnanci - Plán hodín '!C13 -> 160 | D16: ='Zamestnanci - Plán hodín '!D13 -> 15.1818184 | E16: 16000 | F16: 2277.272761 | G16: 18277.27276 | J16: 0 | K16: 5000 | L16: 1.05 | N16: 20000 | O16: 1
B17: Brigádnici | J17: 5000 | K17: 10000 | L17: 1.075 | Q17: Mzdy celkom
J18: 10000 | K18: 20000 | L18: 1.15
B19: ='Zamestnanci zoznam'!I6 -> Lukáš Trilobit | C19: ='Zamestnanci - Plán hodín '!C16 -> 80 | E19: =C19*$M$24 -> 6400 | G19: =E19 -> 6400 | J19: 20000 | L19: 1.2 | Q19: Kategória | S19: Mzdy
B20: ='Zamestnanci zoznam'!I7 -> Marián Sergej | C20: ='Zamestnanci - Plán hodín '!C17 -> 80 | E20: 6400 | G20: =E20 -> 6400 | J20: Výroba | Q20: RPD celkom | S20: =SUM(E7:E16) -> 160000
B21: ='Zamestnanci zoznam'!I8 -> Jakub Cvrlík | C21: ='Zamestnanci - Plán hodín '!C18 -> 80 | E21: 6400 | G21: =E21 -> 6400 | J21: Pracovný čas (mesačný) | M21: Hodinová sadzba | Q21: Nadčasy celkom | S21: =SUM(F7:F16) -> 25050.00037
B22: ='Zamestnanci zoznam'!I9 -> Matúš Sobranec | C22: ='Zamestnanci - Plán hodín '!C19 -> 80 | E22: 6400 | G22: 6400 | M22: RPD | N22: Nadčasy | Q22: Brigádnici celkom | S22: =SUM(G19:G28) -> 64000
B23: ='Zamestnanci zoznam'!I10 -> Erik Sebák | C23: ='Zamestnanci - Plán hodín '!C20 -> 80 | E23: 6400 | G23: 6400 | J23: Zamestnanci | L23: 160 | M23: 100 | N23: 150 | Q23: Dealeri celkom | S23: =SUM(S6:S8) -> 88480
B24: ='Zamestnanci zoznam'!I11 -> Filip Tučný | C24: ='Zamestnanci - Plán hodín '!C21 -> 80 | E24: 6400 | G24: 6400 | J24: Brigádnici | L24: 40 | M24: 80 | Q24: SPOLU: | S24: =SUM(S20:S23) -> 337530.0004
B25: ='Zamestnanci zoznam'!I12 -> Andrej Chudý | C25: ='Zamestnanci - Plán hodín '!C22 -> 80 | E25: 6400 | G25: 6400
B26: ='Zamestnanci zoznam'!I13 -> Eliáš Široký | C26: ='Zamestnanci - Plán hodín '!C23 -> 80 | E26: 6400 | G26: 6400
B27: ='Zamestnanci zoznam'!I14 -> Edmund Kovalda | C27: ='Zamestnanci - Plán hodín '!C24 -> 80 | E27: 6400 | G27: 6400
B28: ='Zamestnanci zoznam'!I15 -> Stano Truhlár | C28: ='Zamestnanci - Plán hodín '!C25 -> 80 | E28: 6400 | G28: =E28 -> 6400

Sheet Transport
B3: Transport | J3: Náklady za transport
B4: Transportná spoločnosť | C4: Produkt | H4: Spolu | J4: TS 1 | N4: TS 2
C5: A | D5: B | E5: C | F5: D | G5: E | J5: od | K5: do | N5: od | O5: do
B6: TS1 | C6: =IF(OR(AND(GETPIVOTDATA("Počet ks",Objednávky!$H$3,"Produkt","A")>8000,GETPIVOTDATA("Počet ks",Objednávky!$H$3,"Produkt","A")<10000),AND(GETPIVOTDATA("Počet ks",Objednávky!$H$3,"Produkt","A")>15000,GETPIVOTDATA("Počet ks",Objednávky!$H$3,"Produkt","A")<20000)),GETPIVOTDATA("Počet ks",Objednávky!$H$3,"Produkt","A"),"-") -> - | D6: =IF(OR(AND(GETPIVOTDATA("Počet ks",Objednávky!$H$3,"Produkt","B")>8000,GETPIVOTDATA("Počet ks",Objednávky!$H$3,"Produkt","B")<10000),AND(GETPIVOTDATA("Počet ks",Objednávky!$H$3,"Produkt","B")>15000,GETPIVOTDATA("Počet ks",Objednávky!$H$3,"Produkt","B")<20000)),GETPIVOTDATA("Počet ks",Objednávky!$H$3,"Produkt","B"),"-") -> - | E6: =IF(OR(AND(GETPIVOTDATA("Počet ks",Objednávky!$H$3,"Produkt","C")>8000,GETPIVOTDATA("Počet ks",Objednávky!$H$3,"Produkt","C")<10000),AND(GETPIVOTDATA("Počet ks",Objednávky!$H$3,"Produkt","C")>15000,GETPIVOTDATA("Počet ks",Objednávky!$H$3,"Produkt","C")<20000)),GETPIVOTDATA("Počet ks",Objednávky!$H$3,"Produkt","C"),"-") -> 16000 | F6: =IF(OR(AND(GETPIVOTDATA("Počet ks",Objednávky!$H$3,"Produkt","D")>8000,GETPIVOTDATA("Počet ks",Objednávky!$H$3,"Produkt","D")<10000),AND(GETPIVOTDATA("Počet ks",Objednávky!$H$3,"Produkt","D")>15000,GETPIVOTDATA("Počet ks",Objednávky!$H$3,"Produkt","D")<20000)),GETPIVOTDATA("Počet ks",Objednávky!$H$3,"Produkt","D"),"-") -> - | G6: =IF(OR(AND(GETPIVOTDATA("Počet ks",Objednávky!$H$3,"Produkt","E")>8000,GETPIVOTDATA("Počet ks",Objednávky!$H$3,"Produkt","E")<10000),AND(GETPIVOTDATA("Počet ks",Objednávky!$H$3,"Produkt","E")>15000,GETPIVOTDATA("Počet ks",Objednávky!$H$3,"Produkt","E")<20000)),GETPIVOTDATA("Počet ks",Objednávky!$H$3,"Produkt","E"),"-") -> - | H6: =SUM(C6:G6) -> 16000 | J6: 0 | K6: 10000 | L6: 10000 | N6: 0 | O6: 8000 | P6: 8000
B7: TS2 | C7: =IF(OR(GETPIVOTDATA("Počet ks",Objednávky!$H$3,"Produkt","A")<8000,AND(GETPIVOTDATA("Počet ks",Objednávky!$H$3,"Produkt","A")>10000,GETPIVOTDATA("Počet ks",Objednávky!$H$3,"Produkt","A")<15000),GETPIVOTDATA("Počet ks",Objednávky!$H$3,"Produkt","A")>20000),GETPIVOTDATA("Počet ks",Objednávky!$H$3,"Produkt","A"),"-") -> 25500 | D7: =IF(OR(GETPIVOTDATA("Počet ks",Objednávky!$H$3,"Produkt","B")<8000,AND(GETPIVOTDATA("Počet ks",Objednávky!$H$3,"Produkt","B")>10000,GETPIVOTDATA("Počet ks",Objednávky!$H$3,"Produkt","B")<15000),GETPIVOTDATA("Počet ks",Objednávky!$H$3,"Produkt","B")>20000),GETPIVOTDATA("Počet ks",Objednávky!$H$3,"Produkt","B"),"-") -> 13000 | E7: =IF(OR(GETPIVOTDATA("Počet ks",Objednávky!$H$3,"Produkt","C")<8000,AND(GETPIVOTDATA("Počet ks",Objednávky!$H$3,"Produkt","C")>10000,GETPIVOTDATA("Počet ks",Objednávky!$H$3,"Produkt","C")<15000),GETPIVOTDATA("Počet ks",Objednávky!$H$3,"Produkt","C")>20000),GETPIVOTDATA("Počet ks",Objednávky!$H$3,"Produkt","C"),"-") -> - | F7: =IF(OR(GETPIVOTDATA("Počet ks",Objednávky!$H$3,"Produkt","D")<8000,AND(GETPIVOTDATA("Počet ks",Objednávky!$H$3,"Produkt","D")>10000,GETPIVOTDATA("Počet ks",Objednávky!$H$3,"Produkt","D")<15000),GETPIVOTDATA("Počet ks",Objednávky!$H$3,"Produkt","D")>20000),GETPIVOTDATA("Počet ks",Objednávky!$H$3,"Produkt","D"),"-") -> 6500 | G7: =IF(OR(GETPIVOTDATA("Počet ks",Objednávky!$H$3,"Produkt","E")<8000,AND(GETPIVOTDATA("Počet ks",Objednávky!$H$3,"Produkt","E")>10000,GETPIVOTDATA("Počet ks",Objednávky!$H$3,"Produkt","E")<15000),GETPIVOTDATA("Počet ks",Objednávky!$H$3,"Produkt","E")>20000),GETPIVOTDATA("Počet ks",Objednávky!$H$3,"Produkt","E"),"-") -> 11000 | H7: 56000 | J7: 10000 | K7: 20000 | L7: 20000 | N7: 8000 | O7: 15000 | P7: 15000
B8: Cena: | C8: =IF(C6="-",LOOKUP(C7,$N$6:$P$8),LOOKUP(C6,$J$6:$L$8)) -> 25000 | D8: =IF(D6="-",LOOKUP(D7,$N$6:$P$8),LOOKUP(D6,$J$6:$L$8)) -> 15000 | E8: =IF(E6="-",LOOKUP(E7,$N$6:$P$8),LOOKUP(E6,$J$6:$L$8)) -> 20000 | F8: =IF(F6="-",LOOKUP(F7,$N$6:$P$8),LOOKUP(F6,$J$6:$L$8)) -> 8000 | G8: =IF(G6="-",LOOKUP(G7,$N$6:$P$8),LOOKUP(G6,$J$6:$L$8)) -> 15000 | H8: 83000 | J8: 20000 | L8: 30000 | N8: 15000 | P8: 25000

Sheet Výpočet ceny
B3: Cena = ((cena M1 * váha M1 + cena M2 * váha M2 + cena M3 * váha M3 + cena M4 * váha M4 + cena M5 * váha M5) / 10) + (mzda za 1 ks) + (koeficient predajcu) + (medzná sadzba za transport) + (zisková marža) + (náklady nájom) + (náklady energie)
B5: CENA | C5: Hrubý výpočet | D5: Zaokrúhlené nahor
B6: A | C6: =((SUMPRODUCT(C14:G14,$C$19:$G$19))/10)+$J$16+M14+$N$22+$I$19+$C$24+$F$24 -> 33.08333333 | D6: =CEILING(C6,1) -> 34
B7: B | C7: =((SUMPRODUCT(C15:G15,$C$19:$G$19))/10)+$J$16+M15+$N$22+$I$19+$C$24+$F$24 -> 38.40333333 | D7: =CEILING(C7,1) -> 39
B8: C | C8: =((SUMPRODUCT(C16:G16,$C$19:$G$19))/10)+$J$16+M16+$N$22+$I$19+$C$24+$F$24 -> 32.83333333 | D8: =CEILING(C8,1) -> 33
B9: D | C9: =((SUMPRODUCT(C17:G17,$C$19:$G$19))/10)+$J$16+M17+$N$22+$I$19+$C$24+$F$24 -> 39.43333333 | D9: 40
B10: E | C10: =((SUMPRODUCT(C18:G18,$C$19:$G$19))/10)+$J$16+M18+$N$22+$I$19+$C$24+$F$24 -> 36.85333333 | D10: 37
B12: Produkty | I12: Mzdy
B13: Produkt | C13: Materiál 1 | D13: Materiál 2 | E13: Materiál 3 | F13: Materiál 4 | G13: Materiál 5 | I13: Výroba | L13: Predaj
B14: Produkt A | C14: 0.25 | D14: 0.6 | E14: - | F14: 0.15 | G14: - | I14: ks/hod | J14: =Výroba!G18 -> 40 | L14: A | M14: ='Zamestnanci - mzdy'!K13 -> 1
B15: Produkt B | C15: 0.3 | D15: - | E15: 0.5 | F15: - | G15: 0.2 | I15: kč/hod | J15: ='Zamestnanci - mzdy'!M23 -> 100 | L15: B | M15: ='Zamestnanci - mzdy'!L13 -> 1.07
B16: Produkt C | C16: 0.6 | D16: 0.4 | I16: kč/ks | J16: =J15/J14 -> 2.5 | L16: C | M16: ='Zamestnanci - mzdy'!M13 -> 1
B17: Produkt D | C17: 0.3 | D17: - | E17: 0.45 | F17: - | G17: 0.25 | L17: D | M17: ='Zamestnanci - mzdy'!N13 -> 1.1
B18: Produkt E | C18: - | D18: 0.25 | E18: 0.25 | F18: 0.3 | G18: 0.2 | I18: Zisková marža | L18: E | M18: ='Zamestnanci - mzdy'!O13 -> 1.02
B19: Cena | C19: =Výroba!C5 -> 250 | D19: =Výroba!C6 -> 300 | E19: =Výroba!C7 -> 300 | F19: =Výroba!C8 -> 200 | G19: =Výroba!C9 -> 500 | I19: 0.5 | J19: Kč/ks
B21: Nájom | E21: Energie | I21: Transport
B22: cena | C22: =Výroba!J13 -> 20000 | D22: Kč/mesiac | E22: cena | F22: =Výroba!J16 -> 20 | G22: kč/hod | I22: Sadzby za transport sú po prepočítaní u oboch spoločností | N22: 1
B23: norma | C23: ='Zamestnanci - mzdy'!N16*3 -> 60000 | D23: ks/mesiac | E23: norma | F23: =Výroba!G18 -> 40 | G23: ks/hod
B24: náklady | C24: =C22/C23 -> 0.3333333333 | D24: kč/ks | E24: náklady | F24: =F22/F23 -> 0.5 | G24: kč/ks

Sheet Finančné oddelenie
B2: Náklady | D2: Príjmy
B4: Fixné
B5: Mzdy (RPD) | C5: =SUM('Zamestnanci - mzdy'!E7:E16) -> 160000 | D5: Predaj výrobkov | E5: =SUM(E6:E10) -> 2569000
B6: Prenájom | C6: =Výroba!J13 -> 20000 | D6: Produkt A | E6: =(GETPIVOTDATA("Počet ks",Objednávky!$H$3,"Produkt","A"))*'Výpočet ceny'!D6 -> 867000
D7: Produkt B | E7: =(GETPIVOTDATA("Počet ks",Objednávky!$H$3,"Produkt","B"))*'Výpočet ceny'!D7 -> 507000
D8: Produkt C | E8: =(GETPIVOTDATA("Počet ks",Objednávky!$H$3,"Produkt","C"))*'Výpočet ceny'!D8 -> 528000
D9: Produkt D | E9: =(GETPIVOTDATA("Počet ks",Objednávky!$H$3,"Produkt","D"))*'Výpočet ceny'!D9 -> 260000
D10: Produkt E | E10: =(GETPIVOTDATA("Počet ks",Objednávky!$H$3,"Produkt","E"))*'Výpočet ceny'!D10 -> 407000
B11: Variabilné
B12: Mzdy | C12: =SUM(C13:C15) -> 177530.0004
B13: Nadčasy | C13: ='Zamestnanci - mzdy'!S21 -> 25050.00037
B14: Brigádnicke hodiny | C14: =SUM('Zamestnanci - mzdy'!E19:E28) -> 64000
B15: Dealeri | C15: =SUM('Zamestnanci - mzdy'!S6:S8) -> 88480
B16: Energie | C16: =SUMPRODUCT('Zamestnanci - Plán hodín '!J15,Výroba!J16) -> 51340.00005
B17: Transport | C17: =Transport!H8 -> 83000
B20: SPOLU:
B21: Náklady | C21: =SUM(C23,C22) -> 491870.0004
B22: Variabilné | C22: =SUM(C12,C16,C17) -> 311870.0004
B23: Fixné | C23: =SUM(C5:C6) -> 180000
B24: Príjmy | C24: =SUM(E5) -> 2569000
B25: =IF(C25>0,"ZISK","STRATA") -> ZISK | C25: =C24-C21 -> 2077130
